[Event "*** Titled Tuesday Blitz"]
[Site "Chess.com"]
[Date "2020.05.12"]
[Round "2"]
[White "MilanovicDan"]
[Black "DanilNajdin"]
[Result "1-0"]
[WhiteElo "2566"]
[BlackElo "2295"]
[TimeControl "180+1"]
[EndTime "10:20:04 PDT"]
[Termination "MilanovicDan won on time"]

1. d4 {[%clk 0:02:54.1]} 1... d5 {[%clk 0:02:59.5]} 2. c4 {[%clk 0:02:53.3]}
2... e6 {[%clk 0:03:00]} 3. Nc3 {[%clk 0:02:53]} 3... Be7 {[%clk 0:03:00.6]} 4.
cxd5 {[%clk 0:02:52.6]} 4... exd5 {[%clk 0:02:59.9]} 5. Bf4 {[%clk 0:02:52.3]}
5... c6 {[%clk 0:02:58.8]} 6. e3 {[%clk 0:02:52.3]} 6... Bf5 {[%clk 0:02:57.6]}
7. Nge2 {[%clk 0:02:51.7]} 7... Nd7 {[%clk 0:02:56.1]} 8. Ng3 {[%clk 0:02:51]}
8... Bg6 {[%clk 0:02:56.7]} 9. Be2 {[%clk 0:02:48.8]} 9... Ngf6 {[%clk
0:02:53.8]} 10. h4 {[%clk 0:02:47.5]} 10... h5 {[%clk 0:02:54.4]} 11. Bg5 {[%clk
0:02:30.9]} 11... Qb6 {[%clk 0:02:43.1]} 12. Qb3 {[%clk 0:02:27.9]} 12... Qxb3
{[%clk 0:02:41.5]} 13. axb3 {[%clk 0:02:27.5]} 13... a6 {[%clk 0:02:38.7]} 14.
f3 {[%clk 0:02:26.8]} 14... O-O-O {[%clk 0:02:34.7]} 15. Kf2 {[%clk 0:02:25.7]}
15... Rhe8 {[%clk 0:02:32.3]} 16. Rhc1 {[%clk 0:02:21.6]} 16... Bd6 {[%clk
0:02:17.9]} 17. Nf1 {[%clk 0:02:18.1]} 17... Kb8 {[%clk 0:02:16.2]} 18. Nd2
{[%clk 0:02:17.4]} 18... Rc8 {[%clk 0:02:01.4]} 19. Na4 {[%clk 0:02:16.8]} 19...
Nh7 {[%clk 0:01:59.2]} 20. Bf4 {[%clk 0:02:10.6]} 20... Bxf4 {[%clk 0:01:59.7]}
21. exf4 {[%clk 0:02:10.5]} 21... Nhf6 {[%clk 0:01:50.1]} 22. b4 {[%clk
0:02:09.1]} 22... Ng8 {[%clk 0:01:46.4]} 23. Nf1 {[%clk 0:02:01]} 23... Ne7
{[%clk 0:01:45.6]} 24. Ne3 {[%clk 0:01:57]} 24... Nf5 {[%clk 0:01:45.7]} 25.
Nxf5 {[%clk 0:01:56.3]} 25... Bxf5 {[%clk 0:01:46.6]} 26. Nc5 {[%clk 0:01:55.4]}
26... Nf8 {[%clk 0:01:44.2]} 27. g4 {[%clk 0:01:50.1]} 27... Bh7 {[%clk
0:01:27.9]} 28. f5 {[%clk 0:01:43.3]} 28... Re7 {[%clk 0:01:17.4]} 29. Bd3
{[%clk 0:01:38.1]} 29... Rce8 {[%clk 0:01:16.3]} 30. Rc2 {[%clk 0:01:12.4]}
30... Kc7 {[%clk 0:01:15.2]} 31. Re2 {[%clk 0:01:11]} 31... Kd6 {[%clk
0:01:13.8]} 32. Rxe7 {[%clk 0:01:10.1]} 32... Rxe7 {[%clk 0:01:13.6]} 33. g5
{[%clk 0:01:08.1]} 33... f6 {[%clk 0:01:12]} 34. g6 {[%clk 0:01:07.1]} 34... Bg8
{[%clk 0:01:12.3]} 35. f4 {[%clk 0:01:03.6]} 35... Kc7 {[%clk 0:00:55.9]} 36.
Re1 {[%clk 0:00:42.7]} 36... Rxe1 {[%clk 0:00:55.5]} 37. Kxe1 {[%clk 0:00:43.3]}
37... Nd7 {[%clk 0:00:41.9]} 38. Nxd7 {[%clk 0:00:40.9]} 38... Kxd7 {[%clk
0:00:42.1]} 39. Kd2 {[%clk 0:00:40.6]} 39... Kd6 {[%clk 0:00:38.3]} 40. Be2
{[%clk 0:00:39.7]} 40... b6 {[%clk 0:00:31.1]} 41. Bxh5 {[%clk 0:00:37.9]} 41...
c5 {[%clk 0:00:28.7]} 42. Kc3 {[%clk 0:00:37.8]} 42... c4 {[%clk 0:00:20.4]} 43.
Bd1 {[%clk 0:00:37.1]} 43... b5 {[%clk 0:00:20.4]} 44. Kd2 {[%clk 0:00:36.3]}
44... Ke7 {[%clk 0:00:20.6]} 45. Ke3 {[%clk 0:00:36.3]} 45... Kf8 {[%clk
0:00:21.1]} 46. Kf3 {[%clk 0:00:35.9]} 46... Ke7 {[%clk 0:00:21.2]} 47. Kg3
{[%clk 0:00:36]} 47... Kf8 {[%clk 0:00:21.2]} 48. Bf3 {[%clk 0:00:36.2]} 48...
Ke7 {[%clk 0:00:19.9]} 49. h5 {[%clk 0:00:36.2]} 49... Ke8 {[%clk 0:00:19.1]}
50. Kh4 {[%clk 0:00:36]} 50... Kf8 {[%clk 0:00:19.4]} 51. Bg2 {[%clk 0:00:36]}
51... Ke7 {[%clk 0:00:17]} 52. h6 {[%clk 0:00:35.7]} 52... gxh6 {[%clk 0:00:17]}
53. Kh5 {[%clk 0:00:35.9]} 53... a5 {[%clk 0:00:13.5]} 54. bxa5 {[%clk
0:00:34.8]} 54... b4 {[%clk 0:00:13.8]} 55. a6 {[%clk 0:00:34.6]} 55... c3
{[%clk 0:00:13]} 56. bxc3 {[%clk 0:00:27.3]} 56... b3 {[%clk 0:00:13]} 57. a7
{[%clk 0:00:26.7]} 57... b2 {[%clk 0:00:13.2]} 58. a8=Q {[%clk 0:00:25.9]} 58...
b1=Q {[%clk 0:00:13.4]} 59. Kxh6 {[%clk 0:00:18.2]} 59... Qxf5 {[%clk
0:00:11.7]} 60. Qxg8 {[%clk 0:00:12.4]} 60... Qxf4+ {[%clk 0:00:11]} 61. Kg7
{[%clk 0:00:12.1]} 61... Qg3 {[%clk 0:00:07.5]} 62. Qf7+ {[%clk 0:00:11.4]}
62... Kd6 {[%clk 0:00:07.5]} 63. Qxd5+ {[%clk 0:00:11.2]} 63... Ke7 {[%clk
0:00:06.7]} 64. Qc5+ {[%clk 0:00:09.7]} 64... Kd8 {[%clk 0:00:05.7]} 65. Qd5+
{[%clk 0:00:07]} 65... Ke7 {[%clk 0:00:05.8]} 66. Qf7+ {[%clk 0:00:06]} 66...
Kd6 {[%clk 0:00:05.3]} 67. Bd5 {[%clk 0:00:06.5]} 67... f5 {[%clk 0:00:04.7]}
68. Qe6+ {[%clk 0:00:06.7]} 68... Kc7 {[%clk 0:00:04.1]} 69. Kf7 {[%clk
0:00:07.2]} 69... Qxc3 {[%clk 0:00:03.2]} 70. g7 {[%clk 0:00:07.3]} 70... Qxd4
{[%clk 0:00:03]} 71. g8=Q {[%clk 0:00:07.6]} 71... Qh8 {[%clk 0:00:02.9]} 72.
Kg6 {[%clk 0:00:04.5]} 72... Qh6+ {[%clk 0:00:01.6]} 73. Kxh6 {[%clk 0:00:03.8]}
73... f4 {[%clk 0:00:01.1]} 74. Qgf7+ {[%clk 0:00:04.7]} 1-0

[Event "*** Titled Tuesday Blitz"]
[Site "Chess.com"]
[Date "2020.05.12"]
[Round "2"]
[White "Alexander_Donchenko"]
[Black "Malev212"]
[Result "0-1"]
[WhiteElo "2736"]
[BlackElo "2524"]
[TimeControl "180+1"]
[EndTime "10:20:05 PDT"]
[Termination "Malev212 won on time"]

1. d4 {[%clk 0:03:00.9]} 1... Nf6 {[%clk 0:02:58.4]} 2. c4 {[%clk 0:03:00.9]}
2... d6 {[%clk 0:02:58.3]} 3. Nf3 {[%clk 0:03:00.8]} 3... Nbd7 {[%clk
0:02:57.9]} 4. Nc3 {[%clk 0:02:59.7]} 4... e5 {[%clk 0:02:54.8]} 5. g3 {[%clk
0:03:00.1]} 5... c6 {[%clk 0:02:52.9]} 6. Bg2 {[%clk 0:03:00.2]} 6... e4 {[%clk
0:02:52.1]} 7. Nd2 {[%clk 0:02:58.8]} 7... d5 {[%clk 0:02:51.7]} 8. cxd5 {[%clk
0:02:58.4]} 8... cxd5 {[%clk 0:02:51.3]} 9. O-O {[%clk 0:02:58.9]} 9... Be7
{[%clk 0:02:50.5]} 10. f3 {[%clk 0:02:59.1]} 10... exf3 {[%clk 0:02:47.8]} 11.
Nxf3 {[%clk 0:03:00]} 11... O-O {[%clk 0:02:46.1]} 12. Ne5 {[%clk 0:03:00.3]}
12... Nxe5 {[%clk 0:02:09.5]} 13. dxe5 {[%clk 0:03:01.2]} 13... Bc5+ {[%clk
0:02:07.9]} 14. e3 {[%clk 0:02:44.7]} 14... Ng4 {[%clk 0:02:04.4]} 15. Nxd5
{[%clk 0:02:42.2]} 15... Be6 {[%clk 0:01:57.2]} 16. Re1 {[%clk 0:02:24.4]} 16...
Nxe5 {[%clk 0:01:49.6]} 17. Nf4 {[%clk 0:02:17.7]} 17... Bg4 {[%clk 0:01:38.1]}
18. Qxd8 {[%clk 0:02:07.7]} 18... Rfxd8 {[%clk 0:01:37.5]} 19. Bxb7 {[%clk
0:02:01.4]} 19... Rab8 {[%clk 0:01:26.7]} 20. Bg2 {[%clk 0:02:01.1]} 20... Nf3+
{[%clk 0:01:25.3]} 21. Bxf3 {[%clk 0:02:01.1]} 21... Bxf3 {[%clk 0:01:26.1]} 22.
Kf2 {[%clk 0:01:57.4]} 22... Be4 {[%clk 0:01:25.5]} 23. b3 {[%clk 0:01:49]}
23... Bb4 {[%clk 0:01:24]} 24. Re2 {[%clk 0:01:49.1]} 24... g5 {[%clk
0:01:20.8]} 25. Nh5 {[%clk 0:01:43.1]} 25... Bc3 {[%clk 0:01:19]} 26. Bb2 {[%clk
0:01:40.9]} 26... Bxb2 {[%clk 0:01:18.8]} 27. Rxb2 {[%clk 0:01:41.8]} 27... Rb6
{[%clk 0:01:18.2]} 28. g4 {[%clk 0:01:38.6]} 28... Bg6 {[%clk 0:01:02.7]} 29.
Rc1 {[%clk 0:01:25]} 29... Rbd6 {[%clk 0:00:54.5]} 30. Ng3 {[%clk 0:01:16.8]}
30... Rd2+ {[%clk 0:00:52.2]} 31. Rxd2 {[%clk 0:01:17]} 31... Rxd2+ {[%clk
0:00:51.7]} 32. Kf3 {[%clk 0:01:17.7]} 32... Rxa2 {[%clk 0:00:50.5]} 33. Rc5
{[%clk 0:01:09.4]} 33... h6 {[%clk 0:00:46.8]} 34. h3 {[%clk 0:01:05.6]} 34...
a5 {[%clk 0:00:45.4]} 35. Nf5 {[%clk 0:00:58.7]} 35... Bxf5 {[%clk 0:00:41.9]}
36. gxf5 {[%clk 0:00:55.3]} 36... Kg7 {[%clk 0:00:39.2]} 37. Kg4 {[%clk
0:00:48.1]} 37... a4 {[%clk 0:00:35.4]} 38. bxa4 {[%clk 0:00:41.7]} 38... Rxa4+
{[%clk 0:00:34.9]} 39. Kf3 {[%clk 0:00:42.4]} 39... Rh4 {[%clk 0:00:34.4]} 40.
Kg3 {[%clk 0:00:39.6]} 40... Kf6 {[%clk 0:00:34.9]} 41. Ra5 {[%clk 0:00:35.3]}
41... h5 {[%clk 0:00:31]} 42. Rb5 {[%clk 0:00:34.4]} 42... Re4 {[%clk
0:00:29.5]} 43. Kf3 {[%clk 0:00:34.2]} 43... Re5 {[%clk 0:00:29.5]} 44. Rb6+
{[%clk 0:00:17.2]} 44... Kxf5 {[%clk 0:00:29]} 45. Rh6 {[%clk 0:00:18.1]} 45...
h4 {[%clk 0:00:28]} 46. Rb6 {[%clk 0:00:16.9]} 46... f6 {[%clk 0:00:27.2]} 47.
Ra6 {[%clk 0:00:16.9]} 47... Rc5 {[%clk 0:00:26.2]} 48. Rb6 {[%clk 0:00:17.2]}
48... Rc2 {[%clk 0:00:22.9]} 49. Rb5+ {[%clk 0:00:17.5]} 49... Kg6 {[%clk
0:00:22.6]} 50. e4 {[%clk 0:00:01.4]} 50... Rh2 {[%clk 0:00:21.2]} 51. Kg4
{[%clk 0:00:01.1]} 51... Rg2+ {[%clk 0:00:21.1]} 52. Kf3 {[%clk 0:00:02]} 52...
Rg3+ {[%clk 0:00:21.5]} 53. Kf2 {[%clk 0:00:02.8]} 53... Rxh3 {[%clk 0:00:21.5]}
54. Rb6 {[%clk 0:00:03.7]} 54... Kf7 {[%clk 0:00:19.1]} 55. Rb7+ {[%clk
0:00:03.6]} 55... Ke6 {[%clk 0:00:19]} 56. Rb6+ {[%clk 0:00:04.3]} 56... Ke5
{[%clk 0:00:18.8]} 57. Kg2 {[%clk 0:00:04.9]} 57... Re3 {[%clk 0:00:17.4]} 58.
Kh2 {[%clk 0:00:05.4]} 58... Rxe4 {[%clk 0:00:17.1]} 59. Rb5+ {[%clk 0:00:06.1]}
59... Kf4 {[%clk 0:00:16.4]} 60. Rb6 {[%clk 0:00:06.3]} 60... f5 {[%clk
0:00:16.8]} 61. Rb3 {[%clk 0:00:06.5]} 61... g4 {[%clk 0:00:16.7]} 62. Kg1
{[%clk 0:00:06.9]} 62... Re2 {[%clk 0:00:16.1]} 63. Rb1 {[%clk 0:00:06.8]} 63...
h3 {[%clk 0:00:15.4]} 64. Rf1+ {[%clk 0:00:07.1]} 64... Kg5 {[%clk 0:00:15]} 65.
Kh1 {[%clk 0:00:07.4]} 65... g3 {[%clk 0:00:14.7]} 66. Rb1 {[%clk 0:00:07.5]}
66... f4 {[%clk 0:00:14.6]} 67. Kg1 {[%clk 0:00:07.4]} 67... Kg4 {[%clk
0:00:14.8]} 68. Kf1 {[%clk 0:00:07.5]} 68... Rc2 {[%clk 0:00:13.2]} 69. Kg1
{[%clk 0:00:07.3]} 69... f3 {[%clk 0:00:10.7]} 70. Kh1 {[%clk 0:00:07.2]} 70...
Re2 {[%clk 0:00:07.6]} 71. Ra1 {[%clk 0:00:07.5]} 71... Kf4 {[%clk 0:00:08]} 72.
Rb1 {[%clk 0:00:07.6]} 72... Ke3 {[%clk 0:00:08.1]} 73. Ra1 {[%clk 0:00:06.6]}
73... Rd2 {[%clk 0:00:08]} 74. Re1+ {[%clk 0:00:04.2]} 74... Kd3 {[%clk
0:00:07.2]} 75. Rf1 {[%clk 0:00:03.9]} 75... Ke2 {[%clk 0:00:06.2]} 76. Rg1
{[%clk 0:00:03.1]} 76... Rd1 {[%clk 0:00:05.3]} 0-1

[Event "*** Titled Tuesday Blitz"]
[Site "Chess.com"]
[Date "2020.05.12"]
[Round "2"]
[White "DanielRensch"]
[Black "DLR7"]
[Result "1/2-1/2"]
[WhiteElo "2497"]
[BlackElo "2718"]
[TimeControl "180+1"]
[EndTime "10:20:07 PDT"]
[Termination "Game drawn - insufficient material"]

1. e4 {[%clk 0:03:00.9]} 1... c5 {[%clk 0:02:55.9]} 2. Nf3 {[%clk 0:03:00.3]}
2... Nc6 {[%clk 0:02:55.7]} 3. d4 {[%clk 0:03:00.3]} 3... cxd4 {[%clk
0:02:55.6]} 4. Nxd4 {[%clk 0:03:01.2]} 4... e5 {[%clk 0:02:54.9]} 5. Nb5 {[%clk
0:03:00.8]} 5... a6 {[%clk 0:02:55]} 6. Nd6+ {[%clk 0:03:00.1]} 6... Bxd6 {[%clk
0:02:55.4]} 7. Qxd6 {[%clk 0:03:01]} 7... Qf6 {[%clk 0:02:55.2]} 8. Qd2 {[%clk
0:02:53.5]} 8... Qg6 {[%clk 0:02:54]} 9. Nc3 {[%clk 0:02:51.9]} 9... Nf6 {[%clk
0:02:53.2]} 10. f3 {[%clk 0:02:51.7]} 10... d5 {[%clk 0:02:52.1]} 11. exd5
{[%clk 0:02:43.9]} 11... Nb4 {[%clk 0:02:44.4]} 12. Bd3 {[%clk 0:02:43.6]} 12...
Bf5 {[%clk 0:02:43]} 13. Bxf5 {[%clk 0:02:39.1]} 13... Qxf5 {[%clk 0:02:42.1]}
14. O-O {[%clk 0:02:40]} 14... Qxc2 {[%clk 0:02:40.2]} 15. Re1 {[%clk
0:02:37.8]} 15... O-O {[%clk 0:02:24.7]} 16. Re2 {[%clk 0:02:36.3]} 16... Qxd2
{[%clk 0:02:04.8]} 17. Bxd2 {[%clk 0:02:35.8]} 17... Nbxd5 {[%clk 0:02:02.3]}
18. Rxe5 {[%clk 0:02:34.3]} 18... Rfd8 {[%clk 0:02:01.8]} 19. Rae1 {[%clk
0:02:30.9]} 19... h6 {[%clk 0:01:59]} 20. Kf2 {[%clk 0:02:23.7]} 20... Rac8
{[%clk 0:01:52.8]} 21. a3 {[%clk 0:02:10.8]} 21... Nxc3 {[%clk 0:01:47.7]} 22.
Bxc3 {[%clk 0:02:10.1]} 22... Nd5 {[%clk 0:01:47.8]} 23. Rc1 {[%clk 0:01:45.7]}
23... Nxc3 {[%clk 0:01:43.1]} 24. Rxc3 {[%clk 0:01:45.5]} 24... Rd2+ {[%clk
0:01:27.3]} 25. Re2 {[%clk 0:01:44.2]} 25... Rxc3 {[%clk 0:01:27.5]} 26. Rxd2
{[%clk 0:01:42.1]} 26... Rb3 {[%clk 0:01:27.6]} 27. Kg3 {[%clk 0:01:41.4]} 27...
g6 {[%clk 0:01:26.5]} 28. Kf4 {[%clk 0:01:41.3]} 28... Kg7 {[%clk 0:01:26.5]}
29. Ke5 {[%clk 0:01:41.6]} 29... h5 {[%clk 0:01:21.5]} 30. h4 {[%clk 0:01:34.8]}
30... Rb6 {[%clk 0:01:14.9]} 31. b4 {[%clk 0:01:32.2]} 31... Re6+ {[%clk
0:01:14.7]} 32. Kf4 {[%clk 0:01:17.1]} 32... Rc6 {[%clk 0:01:08.3]} 33. Rd7
{[%clk 0:01:15.2]} 33... b6 {[%clk 0:01:06.7]} 34. Ra7 {[%clk 0:01:14]} 34... b5
{[%clk 0:01:06.9]} 35. g4 {[%clk 0:01:10.5]} 35... hxg4 {[%clk 0:01:05.9]} 36.
fxg4 {[%clk 0:01:11.4]} 36... Kf6 {[%clk 0:01:06.2]} 37. h5 {[%clk 0:01:01.7]}
37... gxh5 {[%clk 0:01:05.8]} 38. gxh5 {[%clk 0:01:02.6]} 38... Rc4+ {[%clk
0:01:06.5]} 39. Ke3 {[%clk 0:01:02.2]} 39... Rc3+ {[%clk 0:01:07.4]} 40. Kf4
{[%clk 0:01:01.8]} 40... Rxa3 {[%clk 0:01:08.3]} 41. h6 {[%clk 0:01:00.8]} 41...
Ra4 {[%clk 0:01:08]} 42. Kg3 {[%clk 0:00:55.7]} 42... Rxb4 {[%clk 0:01:07.7]}
43. Rxa6+ {[%clk 0:00:55.3]} 43... Kg5 {[%clk 0:01:03.3]} 44. Rb6 {[%clk
0:00:45.6]} 44... f5 {[%clk 0:00:58.8]} 45. h7 {[%clk 0:00:39]} 45... Rg4+
{[%clk 0:00:57.9]} 46. Kf3 {[%clk 0:00:37.6]} 46... Rh4 {[%clk 0:00:58.3]} 47.
Rxb5 {[%clk 0:00:37]} 47... Rxh7 {[%clk 0:00:57.4]} 48. Rb8 {[%clk 0:00:36.8]}
48... Rh3+ {[%clk 0:00:56.2]} 49. Kg2 {[%clk 0:00:36.3]} 49... Ra3 {[%clk
0:00:57.1]} 50. Rb5 {[%clk 0:00:35.1]} 50... Kg4 {[%clk 0:00:56.6]} 51. Rb4+
{[%clk 0:00:35.2]} 51... f4 {[%clk 0:00:56.9]} 52. Kg1 {[%clk 0:00:33.7]} 52...
Ra2 {[%clk 0:00:56.3]} 53. Rb3 {[%clk 0:00:33.5]} 53... Rd2 {[%clk 0:00:55.8]}
54. Rc3 {[%clk 0:00:33.5]} 54... Re2 {[%clk 0:00:55.5]} 55. Rb3 {[%clk
0:00:33.7]} 55... Kf5 {[%clk 0:00:55.5]} 56. Kf1 {[%clk 0:00:32.8]} 56... Rc2
{[%clk 0:00:55]} 57. Ra3 {[%clk 0:00:32.8]} 57... Ke4 {[%clk 0:00:55.1]} 58.
Ra4+ {[%clk 0:00:32.7]} 58... Kf5 {[%clk 0:00:53.3]} 59. Ra5+ {[%clk 0:00:32.5]}
59... Kg4 {[%clk 0:00:52.9]} 60. Ra3 {[%clk 0:00:33]} 60... Rh2 {[%clk 0:00:53]}
61. Kg1 {[%clk 0:00:32.4]} 61... Rh7 {[%clk 0:00:52.4]} 62. Kg2 {[%clk 0:00:32]}
62... Rb7 {[%clk 0:00:51.1]} 63. Kf2 {[%clk 0:00:32.1]} 63... Rb2+ {[%clk
0:00:51.2]} 64. Kg1 {[%clk 0:00:32.3]} 64... Re2 {[%clk 0:00:46.6]} 65. Kf1
{[%clk 0:00:32.5]} 65... Re4 {[%clk 0:00:44]} 66. Kg2 {[%clk 0:00:31.8]} 66...
Rd4 {[%clk 0:00:40.6]} 67. Kf2 {[%clk 0:00:32]} 67... Kf5 {[%clk 0:00:40.9]} 68.
Ra5+ {[%clk 0:00:31]} 68... Ke4 {[%clk 0:00:40.6]} 69. Ra3 {[%clk 0:00:31.5]}
69... Rd2+ {[%clk 0:00:39.7]} 70. Kf1 {[%clk 0:00:31.9]} 70... f3 {[%clk
0:00:37.5]} 71. Ra8 {[%clk 0:00:30.9]} 71... Rd1+ {[%clk 0:00:34.3]} 72. Kf2
{[%clk 0:00:30.4]} 72... Rd2+ {[%clk 0:00:34.6]} 73. Kf1 {[%clk 0:00:30.7]}
73... Ke3 {[%clk 0:00:29.7]} 74. Re8+ {[%clk 0:00:29.6]} 74... Kf4 {[%clk
0:00:30]} 75. Rf8+ {[%clk 0:00:29.8]} 75... Kg3 {[%clk 0:00:28.8]} 76. Rg8+
{[%clk 0:00:29.9]} 76... Kf4 {[%clk 0:00:29]} 77. Rf8+ {[%clk 0:00:30.1]} 77...
Ke3 {[%clk 0:00:28.5]} 78. Re8+ {[%clk 0:00:30.3]} 78... Kd3 {[%clk 0:00:27.9]}
79. Rd8+ {[%clk 0:00:29.7]} 79... Kc2 {[%clk 0:00:28.1]} 80. Rxd2+ {[%clk
0:00:28.8]} 80... Kxd2 {[%clk 0:00:29]} 81. Kf2 {[%clk 0:00:29.4]} 81... Kd3
{[%clk 0:00:28.8]} 82. Kxf3 {[%clk 0:00:30.3]} 1/2-1/2

[Event "*** Titled Tuesday Blitz"]
[Site "Chess.com"]
[Date "2020.05.12"]
[Round "2"]
[White "GMStefanova"]
[Black "El_ultimo_Pablo"]
[Result "0-1"]
[WhiteElo "2665"]
[BlackElo "2426"]
[TimeControl "180+1"]
[EndTime "10:20:08 PDT"]
[Termination "El_ultimo_Pablo won on time"]

1. d4 {[%clk 0:03:00.9]} 1... Nf6 {[%clk 0:02:59.6]} 2. Nf3 {[%clk 0:03:00.8]}
2... d5 {[%clk 0:02:59.5]} 3. c4 {[%clk 0:02:57.6]} 3... e6 {[%clk 0:02:59.8]}
4. g3 {[%clk 0:02:57.6]} 4... Be7 {[%clk 0:02:59.7]} 5. Bg2 {[%clk 0:02:57.8]}
5... O-O {[%clk 0:03:00.3]} 6. O-O {[%clk 0:02:58]} 6... dxc4 {[%clk 0:03:00.7]}
7. Qc2 {[%clk 0:02:57.7]} 7... a6 {[%clk 0:03:01]} 8. a4 {[%clk 0:02:57.5]} 8...
Bd7 {[%clk 0:03:00.9]} 9. Qxc4 {[%clk 0:02:57.6]} 9... Bc6 {[%clk 0:03:01.1]}
10. Bg5 {[%clk 0:02:56.4]} 10... Bd5 {[%clk 0:02:56.8]} 11. Qd3 {[%clk
0:02:56.1]} 11... Be4 {[%clk 0:02:36.2]} 12. Qd1 {[%clk 0:02:54]} 12... c5
{[%clk 0:02:31.8]} 13. dxc5 {[%clk 0:02:46.5]} 13... Qxd1 {[%clk 0:02:20.5]} 14.
Rxd1 {[%clk 0:02:46.1]} 14... Bxc5 {[%clk 0:02:18.1]} 15. Nc3 {[%clk 0:02:41.2]}
15... Bc6 {[%clk 0:02:17.8]} 16. Ne5 {[%clk 0:02:36]} 16... Bxg2 {[%clk
0:02:16.6]} 17. Kxg2 {[%clk 0:02:35.9]} 17... Be7 {[%clk 0:01:30.1]} 18. a5
{[%clk 0:02:12.1]} 18... h6 {[%clk 0:01:25.3]} 19. Be3 {[%clk 0:02:09]} 19...
Rc8 {[%clk 0:01:18.5]} 20. Na4 {[%clk 0:02:06.1]} 20... Nc6 {[%clk 0:00:56.2]}
21. Nd7 {[%clk 0:01:57.5]} 21... Rd8 {[%clk 0:00:45.4]} 22. Nab6 {[%clk
0:01:46.2]} 22... Ra7 {[%clk 0:00:29.7]} 23. Rac1 {[%clk 0:01:12.1]} 23... Nxd7
{[%clk 0:00:21.3]} 24. Nxd7 {[%clk 0:01:06.6]} 24... Raa8 {[%clk 0:00:21.1]} 25.
Bb6 {[%clk 0:01:05]} 25... Re8 {[%clk 0:00:17.8]} 26. Nc5 {[%clk 0:01:02.3]}
26... Bxc5 {[%clk 0:00:17.2]} 27. Rxc5 {[%clk 0:01:01.3]} 27... Re7 {[%clk
0:00:16.8]} 28. f4 {[%clk 0:00:56.7]} 28... f6 {[%clk 0:00:17.1]} 29. g4 {[%clk
0:00:52.7]} 29... Kf7 {[%clk 0:00:17.5]} 30. h4 {[%clk 0:00:51.9]} 30... Ke8
{[%clk 0:00:17.3]} 31. g5 {[%clk 0:00:50.4]} 31... hxg5 {[%clk 0:00:16.7]} 32.
hxg5 {[%clk 0:00:50.1]} 32... Rd7 {[%clk 0:00:15.5]} 33. Rh1 {[%clk 0:00:42.9]}
33... Kf7 {[%clk 0:00:15.6]} 34. gxf6 {[%clk 0:00:40.9]} 34... Kxf6 {[%clk
0:00:15.4]} 35. Kf2 {[%clk 0:00:38.6]} 35... Re8 {[%clk 0:00:13.3]} 36. Rg1
{[%clk 0:00:35.7]} 36... e5 {[%clk 0:00:09.2]} 37. Rc4 {[%clk 0:00:31]} 37... e4
{[%clk 0:00:06.5]} 38. Rg5 {[%clk 0:00:28.3]} 38... e3+ {[%clk 0:00:05.3]} 39.
Bxe3 {[%clk 0:00:21.1]} 39... Rde7 {[%clk 0:00:05]} 40. Rg3 {[%clk 0:00:19.2]}
40... Re4 {[%clk 0:00:04.2]} 41. Rc5 {[%clk 0:00:10.8]} 41... Rb4 {[%clk
0:00:04.2]} 42. Rcg5 {[%clk 0:00:10.3]} 42... Rg8 {[%clk 0:00:02.5]} 43. Rg6+
{[%clk 0:00:09.9]} 43... Kf7 {[%clk 0:00:03]} 44. R6g5 {[%clk 0:00:08.9]} 44...
Rxb2 {[%clk 0:00:02.9]} 45. Rf5+ {[%clk 0:00:08.9]} 45... Ke7 {[%clk 0:00:03.4]}
46. Rd5 {[%clk 0:00:08.4]} 46... Rb5 {[%clk 0:00:03.7]} 47. Rxb5 {[%clk
0:00:07.4]} 47... axb5 {[%clk 0:00:04.6]} 48. Rg5 {[%clk 0:00:07.7]} 48... b4
{[%clk 0:00:05.1]} 49. Rb5 {[%clk 0:00:07.7]} 49... Rb8 {[%clk 0:00:04.5]} 50.
Bc5+ {[%clk 0:00:07.1]} 50... Kd7 {[%clk 0:00:04.7]} 51. Bxb4 {[%clk 0:00:07.3]}
51... Nxb4 {[%clk 0:00:05.1]} 52. Rxb4 {[%clk 0:00:07.6]} 52... Kc7 {[%clk
0:00:05.4]} 53. Kf3 {[%clk 0:00:07.7]} 53... Ra8 {[%clk 0:00:05.1]} 54. Rb5
{[%clk 0:00:06.7]} 54... Rf8 {[%clk 0:00:04.9]} 55. Rg5 {[%clk 0:00:06.7]} 55...
Rf7 {[%clk 0:00:05.4]} 56. e4 {[%clk 0:00:07.1]} 56... Kc6 {[%clk 0:00:05.5]}
57. Ke3 {[%clk 0:00:07.6]} 57... b5 {[%clk 0:00:04.8]} 58. axb6 {[%clk 0:00:07]}
58... Kxb6 {[%clk 0:00:05.7]} 59. e5 {[%clk 0:00:07.4]} 59... Kc6 {[%clk
0:00:06.1]} 60. Ke4 {[%clk 0:00:08]} 60... Kd7 {[%clk 0:00:06.3]} 61. Rg6 {[%clk
0:00:08.5]} 61... Ke7 {[%clk 0:00:06.6]} 62. f5 {[%clk 0:00:08.7]} 62... Kf8
{[%clk 0:00:06.9]} 63. e6 {[%clk 0:00:08.1]} 63... Ra7 {[%clk 0:00:06.9]} 64.
Rg1 {[%clk 0:00:07]} 64... Ra4+ {[%clk 0:00:07.1]} 65. Ke5 {[%clk 0:00:06.9]}
65... Ra5+ {[%clk 0:00:07.1]} 66. Kf4 {[%clk 0:00:07]} 66... Kg8 {[%clk
0:00:07]} 67. Kg5 {[%clk 0:00:06.3]} 67... Kf8 {[%clk 0:00:06.8]} 68. Rb1 {[%clk
0:00:06.1]} 68... Ra8 {[%clk 0:00:07]} 69. Rb7 {[%clk 0:00:05.7]} 69... Kg8
{[%clk 0:00:07.4]} 70. Kg6 {[%clk 0:00:05.6]} 70... Rf8 {[%clk 0:00:07.4]} 71.
Rxg7+ {[%clk 0:00:05.3]} 71... Kh8 {[%clk 0:00:07.2]} 72. Rh7+ {[%clk
0:00:04.6]} 72... Kg8 {[%clk 0:00:07.3]} 73. Rf7 {[%clk 0:00:04.2]} 73... Ra8
{[%clk 0:00:05.6]} 74. e7 {[%clk 0:00:04]} 74... Ra6+ {[%clk 0:00:04]} 75. f6
{[%clk 0:00:03.6]} 75... Ra8 {[%clk 0:00:04]} 76. Rg7+ {[%clk 0:00:02.9]} 76...
Kh8 {[%clk 0:00:04.3]} 0-1